[Event "USA-ch Junior Girls 2019"]
[Site "Saint Louis"]
[Date "2019.07.15"]
[Round "5.4"]
[White "Feng, Maggie"]
[Black "Bykovtsev, Agata"]
[Result "1/2-1/2"]
[ECO "A01"]
[WhiteElo "2198"]
[BlackElo "2012"]
[Annotator "NA RC"]
[PlyCount "83"]
[EventDate "2019.07.09"]
[EventType "tourn"]
[EventCountry "USA"]
[SourceTitle "playchess.com"]
[Source "ChessBase"]
[SourceQuality "1"]
[TimeControl "40/5400+30:1800+30"]

1. b3 {[%emt 0:00:00]} Nf6 {[%emt 0:00:00]} 2. Bb2 {[%emt 0:00:05]} d6 {[%emt 0:01:39]} 3. g3 {[%emt 0:04:01]} g6 {[%emt 0:01:22]} 4. Bg2 {[%emt 0:00:21]} Bg7 {[%emt 0:00:06]} 5. e4 {[%emt 0:03:43]} O-O {[%emt 0:03:50]} 6. Ne2 {[%emt 0:01:25]} c5 {[%emt 0:03:57]} 7. O-O {[%emt 0:08:06]} Nc6 {[%emt 0:02:17]} 8. h3 {[%emt 0:09:44] A01: Nimzowitsch-Larsen Opening} (8. d3 Bd7 9. Nd2 Qc8 10. Nf4 Re8 11. Rb1 Bg4 12. f3 Bd7 13. Nc4 b5 14. Ne3 b4 15. Ne2 a5 {½-½ (30) Wang,C (2529)-Zhao,J (2621) Zaozhuang 2015}) 8... Rb8 {[%emt 0:03:10]} 9. f4 $146 {[%emt 0:14:56]} ({Predecessor:} 9. a4 a6 10. f4 Bd7 11. d3 b5 12. Qc1 Nb4 13. axb5 axb5 14. Nd2 Qb6 15. Kh2 Bc6 {0-1 (53) Domingo Nunez,R (2283)-Bernal Moro,L (2413) Linares 2017}) 9... e5 {[%emt 0:05:39]} 10. Nbc3 {[%emt 0:06:48]} b5 {[%emt 0:04:39]} 11. d3 {[%emt 0:16:38]} Re8 {[%emt 0:03:58]} 12. a4 {[%emt 0:03:35]} b4 {[%emt 0:03:17]} 13. Nb1 {[%emt 0:00:06]} Nd4 {[%emt 0:06:56]} 14. Bxd4 {[%emt 0:12:14]} exd4 {[%emt 0:04:23]} 15. g4 {[%emt 0:00:12]} Bxg4 {[%emt 0:05:49]} 16. hxg4 {[%emt 0:00:09]} Nxg4 {[%emt 0:00:02]} 17. Rf3 {[%emt 0:07:46]} Qh4 {[%emt 0:04:14]} 18. Bh3 {[%emt 0:04:03]} Ne3 {[%emt 0:00:23]} 19. Qc1 {[%emt 0:00:04]} g5 {[%emt 0:11:13]} 20. fxg5 {[%emt 0:00:51]} Re5 {[%emt 0:12:49]} 21. Nd2 {[%emt 0:00:10]} Rxg5+ {[%emt 0:02:02]} 22. Kh1 {[%emt 0:00:05]} Kh8 {[%emt 0:15:28]} 23. Qe1 {[%emt 0:04:15]} Qh6 {[%emt 0:01:57]} (23... Qh5 $19 {has better winning chances.} 24. Qf2 (24. Nf4 $2 Qh6 $19) 24... Rg2) 24. Qf2 {[%emt 0:01:27]} Nxc2 {[%emt 0:01:27]} 25. Rg1 {[%emt 0:00:30]} Rg8 {[%emt 0:03:58]} (25... Rxg1+ $16 26. Nxg1 Ne3) 26. Rxg5 {[%emt 0:00:24]} Qxg5 {[%emt 0:00:10]} 27. Nc4 {[%emt 0:00:05]} Be5 {[%emt 0:02:53]} 28. Nxe5 {[%emt 0:01:05]} dxe5 {[%emt 0:01:18]} 29. Rxf7 {[%emt 0:00:52]} Ne3 {[%emt 0:02:03]} 30. Qf6+ {[%emt 0:00:24]} Qxf6 {[%emt 0:00:04]} 31. Rxf6 {[%emt 0:00:02]} c4 $1 {[%emt 0:02:10]} 32. Nc1 {[%emt 0:00:38]} ({Wrong is} 32. dxc4 $2 d3 $19) (32. bxc4 $2 b3 $19) 32... c3 {[%emt 0:00:46]} 33. Be6 {[%emt 0:00:21]} Rg6 {[%emt 0:01:38]} 34. Rxg6 {[%emt 0:00:24]} hxg6 {[%emt 0:00:01]} 35. Kh2 {[%emt 0:00:25]} Kg7 {[%emt 0:00:21]} 36. Kg3 {[%emt 0:00:06]} Kf6 {[%emt 0:00:24]} 37. Bh3 {[%emt 0:00:35]} Kg5 {[%emt 0:01:20]} 38. Be6 {[%emt 0:01:10]} Kh5 {[%emt 0:00:45]} 39. Bh3 {[%emt 0:00:10]} Kg5 {[%emt 0:01:03]} 40. Be6 {[%emt 0:00:00]} Nd1 {[%emt 0:00:00]} 41. Bh3 {[%emt 0:01:42]} Ne3 {[%emt 0:05:11]} 42. Be6 $11 {[%emt 0:02:40]} 1/2-1/2

[Event "USA-ch Junior Girls 2019"]
[Site "Saint Louis"]
[Date "2019.07.17"]
[Round "6.2"]
[White "Bykovtsev, Agata"]
[Black "Nguyen, Emily"]
[Result "0-1"]
[ECO "B86"]
[WhiteElo "2012"]
[BlackElo "2102"]
[Annotator "NA"]
[PlyCount "76"]
[EventDate "2019.07.09"]
[EventType "tourn"]
[EventCountry "USA"]
[SourceTitle "playchess.com"]
[Source "ChessBase"]
[SourceQuality "1"]
[TimeControl "40/5400+30:1800+30"]

1. e4 {[%emt 0:00:00]} c5 {[%emt 0:00:00]} 2. Nf3 {[%emt 0:00:00]} e6 {[%emt 0:00:00]} 3. d4 {[%emt 0:00:00]} cxd4 {[%emt 0:00:00]} 4. Nxd4 {[%emt 0:00:00]} Nf6 {[%emt 0:00:00]} 5. Nc3 {[%emt 0:00:02]} d6 {[%emt 0:00:01]} 6. Bc4 {[%emt 0:01:11]} Be7 {[%emt 0:00:18]} 7. O-O {[%emt 0:00:12]} O-O {[%emt 0:00:26]} 8. Bb3 {[%emt 0:00:18]} Na6 {[%emt 0:04:15]} 9. f4 {[%emt 0:08:29]} Nc5 {[%emt 0:03:55]} 10. Qf3 {[%emt 0:09:41]} a6 {[%emt 0:16:28]} 11. f5 {[%emt 0:09:23]} Bd7 {[%emt 0:18:28]} 12. Be3 {[%emt 0:08:25]} b5 {[%emt 0:04:08]} 13. a3 {[%emt 0:09:03]} e5 {[%emt 0:05:59]} 14. Nde2 {[%emt 0:00:07]} Nxb3 {[%emt 0:00:04]} 15. cxb3 {[%emt 0:00:03]} Bc6 {[%emt 0:09:05]} 16. Rad1 {[%emt 0:03:16]} Qb8 {[%emt 0:01:12]} 17. b4 {[%emt 0:00:34]} Qb7 {[%emt 0:03:39]} 18. Nd5 {[%emt 0:02:42]} Bxd5 {[%emt 0:00:15]} 19. exd5 {[%emt 0:00:24]} Rac8 {[%emt 0:00:51]} 20. Nc3 {[%emt 0:04:58]} Rc4 {[%emt 0:01:00]} 21. h3 {[%emt 0:02:22]} h6 {[%emt 0:04:30]} 22. g4 {[%emt 0:05:44]} Nd7 {[%emt 0:02:31]} 23. Rf2 {[%emt 0:03:41]} Re8 {[%emt 0:02:25]} 24. Rg2 {[%emt 0:04:13]} e4 {[%emt 0:03:01]} 25. Qg3 {[%emt 0:09:06]} Ne5 {[%emt 0:03:14]} 26. Kh1 {[%emt 0:04:13]} Bd8 {[%emt 0:01:51]} 27. g5 {[%emt 0:02:25]} h5 {[%emt 0:00:52]} 28. Bf4 {[%emt 0:04:21]} Qc8 {[%emt 0:01:06]} 29. f6 {[%emt 0:02:20]} g6 {[%emt 0:02:18]} 30. Re2 {[%emt 0:03:31]} Qf5 {[%emt 0:00:49]} 31. Bxe5 {[%emt 0:01:51]} Rxe5 {[%emt 0:01:02]} 32. b3 {[%emt 0:01:28]} h4 {[%emt 0:02:57]} 33. Qe3 {[%emt 0:00:34]} Bb6 {[%emt 0:00:30]} 34. Qxb6 {[%emt 0:01:09]} Qxh3+ {[%emt 0:01:03]} 35. Rh2 {[%emt 0:00:44]} Qf3+ {[%emt 0:00:03]} 36. Rg2 {[%emt 0:00:26]} h3 {[%emt 0:00:31]} 37. Rdd2 {[%emt 0:00:48]} hxg2+ {[%emt 0:00:10]} 38. Rxg2 {[%emt 0:00:02]} Rxg5 {[%emt 0:00:46]} 0-1

[Event "USA-ch Junior Girls 2019"]
[Site "Saint Louis"]
[Date "2019.07.17"]
[Round "6.3"]
[White "Yan, Ruiyang"]
[Black "Feng, Maggie"]
[Result "1-0"]
[ECO "C18"]
[WhiteElo "1851"]
[BlackElo "2198"]
[Annotator "NA"]
[PlyCount "69"]
[EventDate "2019.07.09"]
[EventType "tourn"]
[EventCountry "USA"]
[SourceTitle "playchess.com"]
[Source "ChessBase"]
[SourceQuality "1"]
[TimeControl "40/5400+30:1800+30"]

1. e4 {[%emt 0:00:00]} e6 {[%emt 0:00:00]} 2. d4 {[%emt 0:00:00]} d5 {[%emt 0:00:00]} 3. Nc3 {[%emt 0:00:00]} Bb4 {[%emt 0:00:37]} 4. e5 {[%emt 0:00:00]} Ne7 {[%emt 0:06:24]} 5. a3 {[%emt 0:00:21]} Bxc3+ {[%emt 0:00:10]} 6. bxc3 {[%emt 0:00:06]} c5 {[%emt 0:00:09]} 7. Qg4 {[%emt 0:00:11]} O-O {[%emt 0:00:39]} 8. Bd3 {[%emt 0:00:07]} Nbc6 {[%emt 0:00:21]} 9. Qh5 {[%emt 0:00:35]} Ng6 {[%emt 0:00:11]} 10. Nf3 {[%emt 0:00:08]} Qc7 {[%emt 0:00:50]} 11. Be3 {[%emt 0:00:14]} c4 {[%emt 0:00:11]} 12. Bxg6 {[%emt 0:00:04]} fxg6 {[%emt 0:00:09]} 13. Qg4 {[%emt 0:00:06]} Qf7 {[%emt 0:00:29]} 14. Ng5 {[%emt 0:00:08]} Qe8 {[%emt 0:00:27]} 15. h4 {[%emt 0:00:14]} h6 {[%emt 0:00:45]} 16. Nh3 {[%emt 0:00:07]} b5 {[%emt 0:03:17]} 17. Qe2 {[%emt 0:00:37]} a5 {[%emt 0:10:28]} 18. g4 {[%emt 0:01:24]} Bd7 {[%emt 0:03:06]} 19. h5 {[%emt 0:01:31]} gxh5 {[%emt 0:01:13]} 20. g5 {[%emt 0:00:31]} hxg5 {[%emt 0:00:19]} 21. Nxg5 {[%emt 0:00:23]} g6 {[%emt 0:00:25]} 22. Kd2 {[%emt 0:00:31]} b4 {[%emt 0:10:22]} 23. Rag1 {[%emt 0:01:50]} bxc3+ {[%emt 0:07:28]} 24. Kxc3 {[%emt 0:01:46]} Qe7 {[%emt 0:20:38]} 25. Ne4 {[%emt 0:10:01]} Qxa3+ {[%emt 0:21:02]} 26. Kd2 {[%emt 0:00:07]} Qb4+ {[%emt 0:03:54]} 27. Nc3 {[%emt 0:00:07]} Kf7 {[%emt 0:00:33]} 28. Rxg6 {[%emt 0:01:08]} Ke8 {[%emt 0:02:36]} 29. Rg7 {[%emt 0:01:10]} Nd8 {[%emt 0:07:09]} 30. Rb1 {[%emt 0:04:23]} Qa3 {[%emt 0:00:15]} 31. Qxh5+ {[%emt 0:00:48]} Nf7 {[%emt 0:00:07]} 32. Bg5 {[%emt 0:00:14]} Bc6 {[%emt 0:00:53]} 33. Qg6 {[%emt 0:00:24]} Bd7 {[%emt 0:00:22]} 34. Nb5 {[%emt 0:01:08]} c3+ {[%emt 0:00:14]} 35. Kd1 {[%emt 0:00:13]} 1-0

[Event "USA-ch Junior Girls 2019"]
[Site "Saint Louis"]
[Date "2019.07.17"]
[Round "6.5"]
[White "Yip, Carissa"]
[Black "Wu, Rochelle"]
[Result "1-0"]
[ECO "B34"]
[WhiteElo "2285"]
[BlackElo "2085"]
[Annotator "NA"]
[PlyCount "69"]
[EventDate "2019.07.09"]
[EventType "tourn"]
[EventCountry "USA"]
[SourceTitle "playchess.com"]
[Source "ChessBase"]
[SourceQuality "1"]
[TimeControl "40/5400+30:1800+30"]

1. e4 {[%emt 0:00:00]} c5 {[%emt 0:00:00]} 2. Nf3 {[%emt 0:00:00]} Nc6 {[%emt 0:00:00]} 3. d4 {[%emt 0:01:27]} cxd4 {[%emt 0:00:00]} 4. Nxd4 {[%emt 0:00:03]} Nf6 {[%emt 0:00:26]} 5. Nc3 {[%emt 0:00:03]} e5 {[%emt 0:00:20]} 6. Ndb5 {[%emt 0:04:04]} d6 {[%emt 0:01:32]} 7. Nd5 {[%emt 0:00:04]} Nxd5 {[%emt 0:00:18]} 8. exd5 {[%emt 0:00:03]} Ne7 {[%emt 0:00:31]} 9. c4 {[%emt 0:00:04]} Nf5 {[%emt 0:01:09]} 10. Bd3 {[%emt 0:03:00]} g6 {[%emt 0:00:42]} 11. O-O {[%emt 0:03:55]} a6 {[%emt 0:07:14]} 12. Bg5 {[%emt 0:12:32]} Be7 {[%emt 0:00:49]} 13. Bxe7 {[%emt 0:02:11]} Qxe7 {[%emt 0:01:00]} 14. Nc3 {[%emt 0:02:44]} O-O {[%emt 0:03:41]} 15. Re1 {[%emt 0:00:02]} Qc7 {[%emt 0:06:38]} 16. Rc1 {[%emt 0:03:59]} Nd4 {[%emt 0:09:50]} 17. b4 {[%emt 0:00:39]} b6 {[%emt 0:08:00]} 18. Qd2 {[%emt 0:05:59]} Bf5 {[%emt 0:09:40]} 19. Bxf5 {[%emt 0:05:49]} Nxf5 {[%emt 0:00:33]} 20. Ne4 {[%emt 0:00:52]} Nd4 {[%emt 0:05:40]} 21. c5 {[%emt 0:05:40]} dxc5 {[%emt 0:04:56]} 22. bxc5 {[%emt 0:08:03]} bxc5 {[%emt 0:00:06]} 23. d6 {[%emt 0:00:06]} Qb6 {[%emt 0:11:56]} 24. Qg5 {[%emt 0:03:45]} f5 {[%emt 0:01:22]} 25. Nf6+ {[%emt 0:01:59]} Kg7 {[%emt 0:01:16]} 26. Nh5+ {[%emt 0:18:11]} Kh8 {[%emt 0:00:29]} 27. Qe7 {[%emt 0:00:05]} gxh5 {[%emt 0:05:26]} 28. Qxe5+ {[%emt 0:00:04]} Kg8 {[%emt 0:00:06]} 29. Qg3+ {[%emt 0:00:19]} Kh8 {[%emt 0:01:02]} 30. Qe5+ {[%emt 0:01:48]} Kg8 {[%emt 0:00:05]} 31. Qg3+ {[%emt 0:00:21]} Kh8 {[%emt 0:00:05]} 32. Re7 {[%emt 0:00:03]} Nf3+ {[%emt 0:02:19]} 33. Qxf3 {[%emt 0:00:18]} Qxd6 {[%emt 0:00:11]} 34. Rce1 {[%emt 0:00:02]} h4 {[%emt 0:03:18]} 35. R1e6 {[%emt 0:01:35]} 1-0

[Event "USA-ch Junior Girls 2019"]
[Site "Saint Louis"]
[Date "2019.07.18"]
[Round "7.5"]
[White "Zilajeva, Veronika"]
[Black "Bykovtsev, Agata"]
[Result "0-1"]
[ECO "E76"]
[WhiteElo "1855"]
[BlackElo "2012"]
[Annotator "NA RC"]
[PlyCount "84"]
[EventDate "2019.07.09"]
[EventType "tourn"]
[EventCountry "USA"]
[SourceTitle "playchess.com"]
[Source "ChessBase"]
[SourceQuality "1"]
[TimeControl "40/5400+30:1800+30"]

1. d4 {[%emt 0:00:00]} Nf6 {[%emt 0:00:00]} 2. c4 {[%emt 0:00:00]} g6 {[%emt 0:00:00]} 3. Nc3 {[%emt 0:00:00]} Bg7 {[%emt 0:00:00]} 4. e4 {[%emt 0:00:00]} d6 {[%emt 0:00:00]} 5. f4 {[%emt 0:00:00]} O-O {[%emt 0:01:07]} 6. Bd3 {[%emt 0:00:15]} c5 {[%emt 0:01:33]} 7. d5 {[%emt 0:00:13]} e6 {[%emt 0:01:00]} 8. dxe6 {[%emt 0:00:21]} fxe6 {[%emt 0:00:42]} 9. Nf3 {[%emt 0:00:13]} Nc6 {[%emt 0:00:41]} 10. O-O {[%emt 0:00:41]} Nd4 {[%emt 0:01:14]} 11. Nxd4 {[%emt 0:00:45]} cxd4 {[%emt 0:00:05]} 12. Nb5 {[%emt 0:00:16]} e5 {[%emt 0:03:39]} 13. fxe5 {[%emt 0:00:57]} dxe5 {[%emt 0:00:11]} 14. c5 {[%emt 0:00:31]} Be6 {[%emt 0:08:22]} 15. Bg5 {[%emt 0:02:05]} h6 {[%emt 0:11:45]} 16. Bd2 {[%emt 0:01:29]} Qd7 {[%emt 0:05:42]} 17. Nd6 {[%emt 0:05:45]} Nh5 {[%emt 0:03:20]} 18. b4 {[%emt 0:18:06]} Kh7 $11 {[%emt 0:05:37]} 19. b5 {[%emt 0:11:48]} Nf4 {[%emt 0:09:35]} 20. Bxf4 {[%emt 0:06:03]} exf4 {[%emt 0:00:53]} 21. Qd2 {[%emt 0:02:00]} Be5 {[%emt 0:14:28]} 22. Qb4 {[%emt 0:02:54]} f3 {[%emt 0:06:39]} 23. Rxf3 {[%emt 0:06:47]} Rxf3 {[%emt 0:00:04]} 24. gxf3 {[%emt 0:00:05]} Rf8 {[%emt 0:02:03]} 25. Rf1 {[%emt 0:00:48]} Bh3 {[%emt 0:00:22]} 26. Rf2 {[%emt 0:00:42]} Qe7 {[%emt 0:05:30]} 27. Kh1 {[%emt 0:03:42]} Qh4 {[%emt 0:03:46]} 28. Qd2 {[%emt 0:03:12]} Bf4 {[%emt 0:01:06]} 29. Qe2 {[%emt 0:01:02]} Be3 {[%emt 0:02:11]} 30. Rg2 {[%emt 0:00:09]} Bxg2+ {[%emt 0:01:06]} 31. Qxg2 {[%emt 0:00:11]} Qe1+ {[%emt 0:01:25]} 32. Bf1 {[%emt 0:00:45]} d3 {[%emt 0:01:30]} 33. Nc4 {[%emt 0:02:33]} d2 {[%emt 0:01:32]} 34. Nxe3 {[%emt 0:01:16]} Qxe3 {[%emt 0:00:06]} 35. Be2 {[%emt 0:00:13]} Qxc5 {[%emt 0:01:20]} 36. Qf1 {[%emt 0:00:38]} Rc8 {[%emt 0:02:55]} 37. Bd1 {[%emt 0:01:04]} Qe3 {[%emt 0:01:25]} 38. Kg2 {[%emt 0:02:00]} Rc1 {[%emt 0:00:49]} 39. a4 {[%emt 0:00:00]} h5 {[%emt 0:00:00]} 40. Kh3 {[%emt 0:00:00]} Kh6 {[%emt 0:00:00]} 41. Kg2 {[%emt 0:06:11]} Rxd1 {[%emt 0:04:54]} 42. Qxd1 {[%emt 0:00:55]} Qe1 {[%emt 0:00:06]} 0-1

[Event "USA-ch Junior Girls 2019"]
[Site "Saint Louis"]
[Date "2019.07.19"]
[Round "8.2"]
[White "Yan, Ruiyang"]
[Black "Zilajeva, Veronika"]
[Result "1-0"]
[ECO "C11"]
[WhiteElo "1851"]
[BlackElo "1855"]
[Annotator "NA"]
[PlyCount "87"]
[EventDate "2019.07.09"]
[EventType "tourn"]
[EventCountry "USA"]
[SourceTitle "playchess.com"]
[Source "ChessBase"]
[SourceQuality "1"]
[TimeControl "40/5400+30:1800+30"]

1. e4 {[%emt 0:00:00]} e6 {[%emt 0:00:00]} 2. d4 {[%emt 0:00:00]} d5 {[%emt 0:00:00]} 3. Nc3 {[%emt 0:00:00]} Nf6 {[%emt 0:00:00]} 4. e5 {[%emt 0:00:00]} Nfd7 {[%emt 0:00:00]} 5. f4 {[%emt 0:00:00]} c5 {[%emt 0:00:01]} 6. Nf3 {[%emt 0:00:00]} Nc6 {[%emt 0:00:26]} 7. Be3 {[%emt 0:00:09]} Qb6 {[%emt 0:01:46]} 8. Na4 {[%emt 0:00:11]} Qa5+ {[%emt 0:00:54]} 9. c3 {[%emt 0:00:12]} c4 {[%emt 0:05:10]} 10. b4 {[%emt 0:01:36]} Qd8 {[%emt 0:02:24] C11: French: Classical System: 4 e5 and 4 Bg5 dxe4} (10... Qc7 11. Be2 Be7 12. O-O O-O 13. Qd2 f5 14. exf6 Nxf6 15. Qc2 b6 16. Ne5 Bb7 17. Nb2 b5 18. a4 a6 19. Bf3 Bd6 20. Rae1 {1-0 (144) Robson,R (2660)-Akobian,V (2647) Saint Louis 2018}) 11. Qd2 $146 {[%emt 0:03:52]} ({Predecessor:} 11. Be2 b5 12. Nc5 Nxc5 13. dxc5 a5 14. a3 Be7 15. O-O O-O 16. Nd4 Nxd4 17. Bxd4 Bd7 18. Bf3 {1-0 (54) Samsonkin,A (2424)-Tremblay,R (2146) Kingston 2019}) 11... Ne7 {[%emt 0:04:42]} 12. Be2 {[%emt 0:03:49]} h5 {[%emt 0:04:20]} 13. Bd1 {[%emt 0:11:01]} Nf5 {[%emt 0:06:25]} 14. Bc2 {[%emt 0:02:12]} Be7 {[%emt 0:01:41]} 15. g3 {[%emt 0:08:42]} Nf8 {[%emt 0:02:55]} 16. Bf2 {[%emt 0:01:30]} Bd7 {[%emt 0:02:10]} 17. Ke2 {[%emt 0:06:38]} Bxa4 {[%emt 0:10:04]} 18. Bxa4+ {[%emt 0:00:08]} Nd7 {[%emt 0:00:05]} 19. h3 {[%emt 0:00:59]} g6 {[%emt 0:02:37]} 20. g4 {[%emt 0:01:00]} Ng7 {[%emt 0:00:19]} 21. Bc2 {[%emt 0:02:02]} Nf8 {[%emt 0:04:47]} 22. a4 {[%emt 0:00:22]} Qd7 {[%emt 0:01:33]} 23. a5 {[%emt 0:04:28]} O-O-O {[%emt 0:00:30]} 24. Rhb1 {[%emt 0:02:56]} hxg4 {[%emt 0:03:02]} 25. hxg4 {[%emt 0:00:02]} g5 {[%emt 0:01:51]} 26. fxg5 {[%emt 0:04:54]} Ng6 {[%emt 0:00:34]} 27. Rh1 {[%emt 0:03:09]} Rxh1 {[%emt 0:03:14]} 28. Rxh1 {[%emt 0:00:01]} Rh8 {[%emt 0:00:08]} 29. Rh6 {[%emt 0:00:14]} Qe8 {[%emt 0:01:56]} 30. Be3 {[%emt 0:00:17]} Qf8 {[%emt 0:05:20]} 31. Qe1 {[%emt 0:06:49]} Ne8 {[%emt 0:00:48]} 32. Bxg6 {[%emt 0:04:48]} fxg6 {[%emt 0:00:23]} 33. Nh4 {[%emt 0:01:20]} Rg8 {[%emt 0:06:47]} 34. Nxg6 {[%emt 0:00:20]} Qg7 {[%emt 0:01:05]} 35. Nxe7+ {[%emt 0:01:31]} Qxe7 {[%emt 0:00:07]} 36. g6 {[%emt 0:01:41]} Qd7 {[%emt 0:01:06]} 37. Qf1 $18 {[%emt 0:15:07]} Qa4 {[%emt 0:05:30]} 38. Qf7 {[%emt 0:00:37]} Qc2+ {[%emt 0:00:10]} 39. Kf3 {[%emt 0:00:13]} Qe4+ {[%emt 0:01:01]} 40. Kf2 {[%emt 0:00:00]} Qc2+ {[%emt 0:00:00]} 41. Kg3 {[%emt 0:00:36]} Qe2 {[%emt 0:01:41]} 42. Bf2 {[%emt 0:00:20]} Qd3+ {[%emt 0:01:00]} 43. Kh2 {[%emt 0:00:12]} Qd2 {[%emt 0:04:32]} 44. Rh7 {[%emt 0:00:12]} 1-0

[Event "USA-ch Junior Girls 2019"]
[Site "Saint Louis"]
[Date "2019.07.20"]
[Round "9.3"]
[White "Nguyen, Emily"]
[Black "Yip, Carissa"]
[Result "1/2-1/2"]
[ECO "A40"]
[WhiteElo "2102"]
[BlackElo "2285"]
[Annotator "ChessBase"]
[PlyCount "93"]
[EventDate "2019.07.09"]
[EventType "tourn"]
[EventCountry "USA"]
[SourceTitle "playchess.com"]
[Source "ChessBase"]
[SourceQuality "1"]
[TimeControl "40/5400+30:1800+30"]

1. d4 {[%emt 0:00:00]} g6 {[%emt 0:00:00]} 2. c4 {[%emt 0:00:00]} Bg7 {[%emt 0:00:00]} 3. Nc3 {[%emt 0:00:00]} Nf6 {[%emt 0:00:00]} 4. Nf3 {[%emt 0:00:00]} O-O {[%emt 0:00:00]} 5. g3 {[%emt 0:00:00]} d5 {[%emt 0:00:00]} 6. cxd5 {[%emt 0:00:02]} Nxd5 {[%emt 0:00:00]} 7. Bg2 {[%emt 0:00:04]} Nb6 {[%emt 0:00:04]} 8. O-O {[%emt 0:00:06]} Nc6 {[%emt 0:00:02]} 9. d5 {[%emt 0:00:08]} Na5 {[%emt 0:01:21]} 10. Qc2 {[%emt 0:00:07]} c6 {[%emt 0:06:03]} 11. dxc6 {[%emt 0:00:12]} Nxc6 {[%emt 0:03:06]} 12. Rd1 {[%emt 0:00:07]} Qe8 {[%emt 0:05:23]} 13. Qe4 {[%emt 0:00:09]} e5 {[%emt 0:02:07]} 14. Qh4 {[%emt 0:04:51]} Qe7 {[%emt 0:15:57]} 15. Qxe7 {[%emt 0:09:29]} Nxe7 {[%emt 0:00:39]} 16. Be3 {[%emt 0:00:26]} Nc6 {[%emt 0:14:33]} 17. Nb5 {[%emt 0:09:01]} e4 {[%emt 0:06:37]} 18. Nfd4 {[%emt 0:02:56]} Nc4 {[%emt 0:02:21]} 19. Bxe4 {[%emt 0:08:03]} Nxe3 {[%emt 0:03:17]} 20. fxe3 {[%emt 0:00:14]} Bh6 {[%emt 0:00:26]} 21. Nxc6 {[%emt 0:04:55]} Bxe3+ {[%emt 0:00:14]} 22. Kg2 {[%emt 0:00:07]} bxc6 {[%emt 0:00:07]} 23. Bxc6 {[%emt 0:00:09]} Rb8 {[%emt 0:00:19]} 24. Rd3 {[%emt 0:05:26]} Bh6 {[%emt 0:01:19]} 25. b3 {[%emt 0:08:35]} Rb6 {[%emt 0:08:49]} 26. Nxa7 {[%emt 0:00:25]} Bf5 {[%emt 0:03:27]} 27. e4 {[%emt 0:01:37]} Rxc6 {[%emt 0:01:12]} 28. exf5 {[%emt 0:00:05]} Rc2+ {[%emt 0:00:02]} 29. Kh3 {[%emt 0:05:03]} Ra8 {[%emt 0:15:28]} 30. Nb5 {[%emt 0:07:15]} Bg7 {[%emt 0:01:39]} 31. f6 {[%emt 0:10:59]} Bxf6 {[%emt 0:00:41]} 32. Rf1 {[%emt 0:00:05]} Raxa2 {[%emt 0:05:01]} 33. Rxf6 {[%emt 0:00:11]} h5 {[%emt 0:00:03]} 34. Kh4 {[%emt 0:05:10]} Rc5 {[%emt 0:00:09]} 35. h3 {[%emt 0:00:03]} Rxb5 {[%emt 0:00:34]} 36. Rd7 {[%emt 0:00:29]} Re2 {[%emt 0:03:25]} 37. Rdxf7 {[%emt 0:01:09]} Re4+ {[%emt 0:01:57]} 38. g4 {[%emt 0:00:05]} Re8 {[%emt 0:00:02]} 39. Ra7 {[%emt 0:01:21]} hxg4 {[%emt 0:00:24]} 40. Rxg6+ {[%emt 0:00:00]} Kh8 {[%emt 0:00:00]} 41. hxg4 {[%emt 0:05:21]} Rxb3 {[%emt 0:01:09]} 42. Rc6 {[%emt 0:06:13]} Rb1 {[%emt 0:02:27]} 43. g5 {[%emt 0:01:35]} Rh1+ {[%emt 0:02:10]} 44. Kg4 {[%emt 0:00:05]} Rg1+ {[%emt 0:00:46]} 45. Kh5 {[%emt 0:01:45]} Rh1+ {[%emt 0:00:06]} 46. Kg4 {[%emt 0:00:04]} Rg1+ {[%emt 0:00:04]} 47. Kh5 {[%emt 0:00:03]} 1/2-1/2